[Event "Int SVK-ch Open 2020"]
[Site "Drienica"]
[Date "2020.08.15"]
[Round "9.20"]
[White "Svobodova, Michaela"]
[Black "Sosovickova, Jana"]
[Result "1-0"]
[ECO "C47"]
[WhiteElo "1964"]
[BlackElo "1829"]
[Annotator "NA RC"]
[PlyCount "171"]
[EventDate "2020.08.07"]
[EventType "swiss"]
[EventCountry "SVK"]
[SourceTitle "playchess.com"]
[Source "ChessBase"]
[SourceQuality "1"]
[TimeControl "40/5400+30:1800+30"]

{[%evp 24,164,7,0,0,0,0,0,0,0,32767,0,34,34,38,31,89,32767,32767,97,32767,101,106,96,32767,127,124,125,126,125,125,135,129,135,121,148,32767,117,32767,84,32767,212,197,32767,32767,204,174,182,166,126,104,11,32767,8,32767,32767,32767,32767,464,32767,549,18,0,32767,0,8,32767,0,32767,32767,347,384,349,381,393,339,689,370,441,718,230,411,358,0,469,0,516,12812,1610,84,671,2227,5361,12843,965,32767,32767,32767,32767,32767,32767,32767,32767,32767,32767,32767,32767,32767,32767,32767,32767,32767,32767,32767,32767,32767,32767,32767,32767,29981,29981,29982,29983,27999,29984,29985,32767,32767,32767,32767,32767,32767,32767,32767,32767,32767,32767,32767,29992,29993,29994,440,29995]} 1. e4 {[%emt 0:00:00]} e5 {[%emt 0:00:13]} 2. Nf3 {[%emt 0:00:00]} Nc6 {[%emt 0:00:08]} 3. Nc3 {[%emt 0:00:00]} Nf6 {[%emt 0:00:17]} 4. d4 {[%emt 0:00:09]} exd4 {[%emt 0:00:37]} 5. Nxd4 {[%emt 0:00:12]} Bb4 {[%emt 0:00:52]} 6. Nxc6 {[%emt 0:00:21]} bxc6 {[%emt 0:01:29]} 7. Bd3 {[%emt 0:00:13]} d5 {[%emt 0:01:27]} 8. exd5 {[%emt 0:00:12]} cxd5 {[%emt 0:00:56]} 9. O-O {[%emt 0:00:20]} O-O {[%emt 0:01:21]} 10. h3 {[%emt 0:01:04] C47: Scotch Four Knights and Four Knights with 4 g3.} c6 {[%emt 0:05:58]} 11. Qf3 {[%emt 0:01:11]} Be6 {[%emt 0:05:30] Recently 11...Rb8 got a lot of attention.} 12. Bf4 {[%emt 0:01:45]} Bd6 {[%emt 0:02:49]} 13. Rad1 {[%emt 0:05:16]} Bxf4 {[%emt 0:03:02]} 14. Qxf4 {[%emt 0:00:20]} Qb8 {[%emt 0:04:21]} 15. Qxb8 {[%emt 0:05:11]} Raxb8 {[%emt 0:01:05]} 16. b3 {[%emt 0:02:06]} Nd7 {[%emt 0:10:37] [#]} 17. f4 $146 {[%emt 0:08:47]} ({Predecessor:} 17. Na4 Ne5 18. Nc5 Nxd3 19. Nxe6 fxe6 20. Rxd3 e5 21. Rc3 Rf6 22. Re3 e4 23. f3 {0-1 (58) Labuda,A (1251)-Zhou,L (1724) Willingen 2019}) 17... f5 {[%emt 0:03:18]} 18. Rfe1 {[%emt 0:08:41]} Nc5 {[%emt 0:06:52]} 19. Ne2 {[%emt 0:06:45]} Nxd3 {[%emt 0:13:59]} (19... g6 $11) 20. Rxd3 {[%emt 0:00:58]} Rfe8 {[%emt 0:01:19]} 21. Nd4 {[%emt 0:04:19]} Bd7 {[%emt 0:02:13]} 22. Rxe8+ {[%emt 0:07:23]} Rxe8 {[%emt 0:00:55]} 23. Nf3 {[%emt 0:01:48]} Bc8 {[%emt 0:05:51]} 24. Ne5 {[%emt 0:03:07]} Bb7 {[%emt 0:03:16]} 25. Rc3 {[%emt 0:02:34]} Rc8 {[%emt 0:04:48]} 26. Rc5 {[%emt 0:05:57]} Kf8 {[%emt 0:06:17]} 27. Kf2 {[%emt 0:02:59]} Ke7 {[%emt 0:01:25]} 28. Ke3 {[%emt 0:01:59]} Kd6 {[%emt 0:03:31]} 29. b4 {[%emt 0:02:07]} Rc7 {[%emt 0:02:27]} 30. Kd4 {[%emt 0:03:29]} Ba6 {[%emt 0:05:35] [#]} 31. h4 {[%emt 0:03:23]} (31. c4 $1 $18) 31... h5 {[%emt 0:01:19]} 32. a4 {[%emt 0:02:22]} Bf1 {[%emt 0:01:05]} 33. g3 {[%emt 0:00:35]} a6 {[%emt 0:00:34]} 34. Ke3 {[%emt 0:03:52]} Bg2 {[%emt 0:00:39]} 35. Ra5 {[%emt 0:02:01]} Ra7 {[%emt 0:00:24]} 36. Kf2 {[%emt 0:01:55]} Be4 {[%emt 0:00:19]} 37. b5 {[%emt 0:02:06]} ({Better is} 37. Rc5 $16 d4 38. Rc4) 37... cxb5 {[%emt 0:00:47]} 38. axb5 {[%emt 0:00:18]} Bxc2 {[%emt 0:00:15]} 39. Rxa6+ {[%emt 0:03:51]} Rxa6 {[%emt 0:00:08]} 40. bxa6 {[%emt 0:00:08]} Kc7 {[%emt 0:00:34]} 41. Ke3 {[%emt 0:31:02]} Kb6 {[%emt 0:30:44] [#]} 42. Kd4 $2 {[%emt 0:01:30]} (42. Nd3 $1 $18 Bd1 43. Nb4) 42... Be4 {[%emt 0:00:00]} 43. Ng6 {[%emt 0:00:00]} Kxa6 {[%emt 0:00:00]} 44. Ne7 {[%emt 0:00:00]} Kb5 {[%emt 0:00:00]} 45. Nxd5 {[%emt 0:00:00]} Kc6 {[%emt 0:00:00]} 46. Nc3 {[%emt 0:00:00]} Bc2 {[%emt 0:00:00] [#]} 47. Ke5 $1 {[%emt 0:00:00]} Kd7 {[%emt 0:00:00]} 48. Nd5 {[%emt 0:00:00]} Bd3 {[%emt 0:00:00] [#]} 49. Ne3 $1 {[%emt 0:00:00]} Ke7 {[%emt 0:00:00]} 50. Nxf5+ {[%emt 0:00:00] Double Attack} Kf7 {[%emt 0:00:00] [#]} 51. Nd6+ $1 {[%emt 0:00:00]} Ke7 {[%emt 0:00:00]} 52. f5 {[%emt 0:00:00]} Bc2 {[%emt 0:00:19]} 53. Ne4 $2 {[%emt 0:00:00]} (53. Nb7 $18 Bb1 54. Nc5) 53... Kf7 $2 {[%emt 0:02:01]} (53... Bxe4 $1 $11 54. Kxe4 Kf7) 54. Kf4 $2 {[%emt 0:00:00]} (54. Nc3 $18 g6 55. f6) 54... Ke7 $2 {[%emt 0:02:44]} (54... Bxe4 $1 $11 {and Black is okay.} 55. Kxe4 Ke7) 55. Nc3 {[%emt 0:00:00]} Kf6 {[%emt 0:01:30]} 56. Nd5+ {[%emt 0:00:00]} Kf7 {[%emt 0:00:09]} 57. Kg5 {[%emt 0:00:00]} Be4 {[%emt 0:01:43]} 58. Nf4 {[%emt 0:00:00]} Bc2 {[%emt 0:00:30]} 59. Nxh5 {[%emt 0:00:00]} Bd1 {[%emt 0:00:25]} 60. Nf4 {[%emt 0:00:00]} Bc2 {[%emt 0:00:30]} 61. Ng6 {[%emt 0:00:00]} Ba4 {[%emt 0:00:32]} 62. Ne5+ {[%emt 0:00:00]} Kg8 {[%emt 0:00:16]} 63. h5 {[%emt 0:00:00]} Kh7 {[%emt 0:00:25]} 64. g4 {[%emt 0:00:00]} Be8 {[%emt 0:00:38]} 65. Nd3 {[%emt 0:00:42]} Bb5 {[%emt 0:00:33]} 66. Nc5 {[%emt 0:00:58]} Be2 {[%emt 0:00:26]} 67. Nd7 {[%emt 0:00:28]} Bb5 {[%emt 0:00:28]} 68. f6 {[%emt 0:02:11]} gxf6+ {[%emt 0:00:48]} 69. Nxf6+ {[%emt 0:00:11]} Kg7 {[%emt 0:00:13]} 70. h6+ {[%emt 0:02:31]} Kh8 {[%emt 0:00:09]} 71. Kg6 {[%emt 0:01:23]} Bd3+ {[%emt 0:00:44]} 72. Kf7 {[%emt 0:00:19]} Bg6+ {[%emt 0:00:14]} 73. Kf8 {[%emt 0:00:31]} (73. Ke7 $18 Bc2 74. g5) 73... Bf5 {[%emt 0:00:44]} 74. g5 {[%emt 0:00:36]} Bg6 {[%emt 0:00:31]} 75. Ng4 {[%emt 0:01:48]} Kh7 {[%emt 0:01:05]} 76. Ne5 {[%emt 0:00:50]} Be4 {[%emt 0:00:31]} 77. Kf7 {[%emt 0:00:41]} Bg6+ {[%emt 0:00:18]} 78. Kf6 {[%emt 0:00:12]} Bc2 {[%emt 0:00:16]} 79. Nd7 {[%emt 0:00:59]} Bb1 {[%emt 0:00:44]} 80. Nf8+ {[%emt 0:00:20]} Kh8 {[%emt 0:00:39]} 81. g6 {[%emt 0:02:21]} Bxg6 {[%emt 0:00:33]} 82. Kxg6 {[%emt 0:00:32]} Kg8 {[%emt 0:00:03]} 83. Ne6 {[%emt 0:00:44]} Kh8 {[%emt 0:00:11]} 84. Ng5 {[%emt 0:00:21]} Kg8 {[%emt 0:00:12]} 85. h7+ {[%emt 0:00:19]} Kh8 {[%emt 0:00:04]} 86. Nf7# {[%emt 0:00:08]} 1-0

[Event "Int SVK-ch Open 2020"]
[Site "Drienica"]
[Date "2020.08.15"]
[Round "9.21"]
[White "Banoci, Jaroslav"]
[Black "Tomcik, Milan"]
[Result "1/2-1/2"]
[ECO "A48"]
[WhiteElo "1833"]
[BlackElo "1963"]
[Annotator "ChessBase"]
[PlyCount "45"]
[EventDate "2020.08.07"]
[EventType "swiss"]
[EventCountry "SVK"]
[SourceTitle "playchess.com"]
[Source "ChessBase"]
[SourceQuality "1"]
[TimeControl "40/5400+30:1800+30"]

1. d4 {[%emt 0:01:44]} Nf6 {[%emt 0:00:00]} 2. Nf3 {[%emt 0:00:16]} g6 {[%emt 0:00:00]} 3. Bg5 {[%emt 0:00:44]} Bg7 {[%emt 0:00:00]} 4. Nbd2 {[%emt 0:00:25]} d6 {[%emt 0:00:21]} 5. e3 {[%emt 0:01:32]} Nbd7 {[%emt 0:00:05]} 6. h3 {[%emt 0:01:48]} O-O {[%emt 0:00:26]} 7. Be2 {[%emt 0:00:48]} Re8 {[%emt 0:05:16]} 8. O-O {[%emt 0:04:00]} h6 {[%emt 0:00:29]} 9. Bh4 {[%emt 0:00:55]} c6 {[%emt 0:04:49]} 10. a4 {[%emt 0:03:01]} a5 {[%emt 0:00:54]} 11. c3 {[%emt 0:01:09]} e5 {[%emt 0:01:22]} 12. dxe5 {[%emt 0:06:30]} dxe5 {[%emt 0:16:42]} 13. Qc2 {[%emt 0:06:01]} Qc7 {[%emt 0:08:33]} 14. Rfd1 {[%emt 0:05:59]} Nc5 {[%emt 0:06:37]} 15. g4 {[%emt 0:05:44]} h5 {[%emt 0:08:13]} 16. Nh2 {[%emt 0:07:23]} hxg4 {[%emt 0:01:24]} 17. hxg4 {[%emt 0:00:34]} Be6 {[%emt 0:06:30]} 18. Bg3 {[%emt 0:01:34]} Rad8 {[%emt 0:05:38]} 19. b4 {[%emt 0:06:39]} Ncd7 {[%emt 0:02:15]} 20. Nc4 {[%emt 0:03:30]} axb4 {[%emt 0:01:26]} 21. cxb4 {[%emt 0:00:51]} Nd5 {[%emt 0:00:36]} 22. Rab1 {[%emt 0:03:33]} Ra8 {[%emt 0:10:35]} 23. Rdc1 {[%emt 0:05:38]} 1/2-1/2

[Event "Int SVK-ch Open 2020"]
[Site "Drienica"]
[Date "2020.08.15"]
[Round "9.22"]
[White "Bakalar, Jan"]
[Black "Kucera, Michal"]
[Result "1-0"]
[ECO "B31"]
[WhiteElo "1896"]
[BlackElo "1991"]
[Annotator "ChessBase"]
[PlyCount "101"]
[EventDate "2020.08.07"]
[EventType "swiss"]
[EventCountry "SVK"]
[SourceTitle "playchess.com"]
[Source "ChessBase"]
[SourceQuality "1"]
[TimeControl "40/5400+30:1800+30"]

1. e4 {[%emt 0:00:00]} c5 {[%emt 0:00:00]} 2. Nf3 {[%emt 0:00:22]} Nc6 {[%emt 0:00:00]} 3. Bb5 {[%emt 0:01:26]} g6 {[%emt 0:00:00]} 4. Bxc6 {[%emt 0:01:06]} dxc6 {[%emt 0:00:12]} 5. h3 {[%emt 0:00:33]} Bg7 {[%emt 0:01:00]} 6. O-O {[%emt 0:00:20]} e5 {[%emt 0:01:11]} 7. Re1 {[%emt 0:02:18]} Ne7 {[%emt 0:00:29]} 8. d3 {[%emt 0:01:21]} f6 {[%emt 0:08:39]} 9. Nbd2 {[%emt 0:05:34]} Be6 {[%emt 0:02:41]} 10. Nf1 {[%emt 0:00:56]} Qc7 {[%emt 0:04:09]} 11. Be3 {[%emt 0:01:36]} b6 {[%emt 0:00:09]} 12. a4 {[%emt 0:00:53]} a5 {[%emt 0:02:19]} 13. Qe2 {[%emt 0:04:36]} O-O {[%emt 0:02:36]} 14. Bd2 {[%emt 0:01:55]} Rad8 {[%emt 0:03:21]} 15. Bc3 {[%emt 0:00:32]} Kh8 {[%emt 0:01:24]} 16. Red1 {[%emt 0:03:31]} Rg8 {[%emt 0:15:07]} 17. N3h2 {[%emt 0:06:02]} g5 {[%emt 0:09:22]} 18. Bd2 {[%emt 0:07:26]} Ng6 {[%emt 0:03:29]} 19. g4 {[%emt 0:01:05]} Rd7 {[%emt 0:06:53]} 20. Ng3 {[%emt 0:02:16]} Nh4 {[%emt 0:05:06]} 21. Nf3 {[%emt 0:02:31]} Nxf3+ {[%emt 0:00:26]} 22. Qxf3 {[%emt 0:00:02]} Bf7 {[%emt 0:02:13]} 23. b3 {[%emt 0:00:34]} Bg6 {[%emt 0:01:38]} 24. Kg2 {[%emt 0:01:46]} Rgd8 {[%emt 0:00:35]} 25. Nf5 {[%emt 0:01:36]} Rf7 {[%emt 0:01:00]} 26. Rh1 {[%emt 0:01:22]} Bxf5 {[%emt 0:03:44]} 27. Qxf5 {[%emt 0:00:22]} Qd7 {[%emt 0:00:08]} 28. Qxd7 {[%emt 0:04:21]} Rdxd7 {[%emt 0:01:33]} 29. h4 {[%emt 0:00:13]} gxh4 {[%emt 0:00:36]} 30. Rxh4 {[%emt 0:00:09]} Bf8 {[%emt 0:03:32]} 31. Rah1 {[%emt 0:02:28]} Kg8 {[%emt 0:00:52]} 32. Rh5 {[%emt 0:00:52]} Be7 {[%emt 0:04:02]} 33. Rf5 {[%emt 0:00:42]} Rg7 {[%emt 0:01:15]} 34. Kf3 {[%emt 0:02:22]} Bd8 {[%emt 0:00:45]} 35. g5 {[%emt 0:19:57]} fxg5 {[%emt 0:04:40]} 36. Rxe5 {[%emt 0:00:57]} g4+ {[%emt 0:01:00]} 37. Kg2 {[%emt 0:00:49]} Rde7 {[%emt 0:06:43]} 38. Rxe7 {[%emt 0:02:23]} Bxe7 {[%emt 0:00:18]} 39. Rh6 {[%emt 0:00:47]} Kf7 {[%emt 0:02:32]} 40. Rxc6 {[%emt 0:00:49]} Rg6 {[%emt 0:00:31]} 41. Rxg6 {[%emt 0:31:43]} Kxg6 {[%emt 0:30:05]} 42. Bf4 {[%emt 0:00:37]} Bd8 {[%emt 0:00:20]} 43. f3 {[%emt 0:00:41]} Kh5 {[%emt 0:01:41]} 44. e5 {[%emt 0:03:01]} gxf3+ {[%emt 0:00:47]} 45. Kxf3 {[%emt 0:00:02]} Kg6 {[%emt 0:00:18]} 46. Ke4 {[%emt 0:00:17]} h5 {[%emt 0:00:09]} 47. c3 {[%emt 0:01:59]} h4 {[%emt 0:00:00]} 48. d4 {[%emt 0:00:00]} Bg5 {[%emt 0:00:00]} 49. Bxg5 {[%emt 0:00:00]} Kxg5 {[%emt 0:00:00]} 50. e6 {[%emt 0:00:00]} Kf6 {[%emt 0:00:00]} 51. d5 {[%emt 0:00:00]} 1-0

[Event "Int SVK-ch Open 2020"]
[Site "Drienica"]
[Date "2020.08.15"]
[Round "9.22"]
[White "Sevcik, Ondrej"]
[Black "Horbalova, Ivana"]
[Result "0-1"]
[ECO "B27"]
[WhiteElo "1017"]
[BlackElo "1306"]
[Annotator "NA RC"]
[PlyCount "31"]
[EventDate "2020.08.07"]
[EventType "swiss"]
[EventCountry "SVK"]
[SourceTitle "playchess.com"]
[Source "ChessBase"]
[SourceQuality "1"]
[TimeControl "40/5400+30:1800+30"]

1. e4 c5 2. Nf3 b6 3. d4 cxd4 4. Nxd4 Bb7 5. Nc3 Nf6 6. Bc4 e6 7. O-O Nxe4 8. Nxe4 Bxe4 9. Re1 Bb7 10. Bf4 Bc5 11. Qh5 Bxd4 12. c3 Qf6 13. Bg3 Bc5 14. Rad1 O-O 15. Bd3 g6 16. Bb5 0-1

[Event "Int SVK-ch Open 2020"]
[Site "Drienica"]
[Date "2020.08.15"]
[Round "9.23"]
[White "Geffert, Anton"]
[Black "Ferkova, Dominika"]
[Result "1/2-1/2"]
[ECO "E61"]
[WhiteElo "1909"]
[BlackElo "2111"]
[Annotator "ChessBase"]
[PlyCount "25"]
[EventDate "2020.08.07"]
[EventType "swiss"]
[EventCountry "SVK"]
[SourceTitle "playchess.com"]
[Source "ChessBase"]
[SourceQuality "1"]
[TimeControl "40/5400+30:1800+30"]

1. d4 {[%emt 0:00:00]} Nf6 {[%emt 0:00:00]} 2. c4 {[%emt 0:00:00]} g6 {[%emt 0:00:01]} 3. Nc3 {[%emt 0:00:00]} Bg7 {[%emt 0:00:16]} 4. Nf3 {[%emt 0:00:24]} d6 {[%emt 0:00:29]} 5. h3 {[%emt 0:01:07]} O-O {[%emt 0:00:55]} 6. e3 {[%emt 0:01:00]} c5 {[%emt 0:06:18]} 7. Qb3 {[%emt 0:01:11]} e6 {[%emt 0:03:29]} 8. Be2 {[%emt 0:00:20]} b6 {[%emt 0:04:09]} 9. O-O {[%emt 0:01:28]} Re8 {[%emt 0:08:16]} 10. Rd1 {[%emt 0:00:17]} Nbd7 {[%emt 0:02:36]} 11. e4 {[%emt 0:11:32]} Bb7 {[%emt 0:11:31]} 12. e5 {[%emt 0:04:05]} dxe5 {[%emt 0:06:44]} 13. dxe5 {[%emt 0:00:54]} 1/2-1/2

[Event "Int SVK-ch Open 2020"]
[Site "Drienica"]
[Date "2020.08.15"]
[Round "9.23"]
[White "Andras, Anton"]
[Black "Kukan, Michal"]
[Result "0-1"]
[ECO "B08"]
[WhiteElo "1582"]
[BlackElo "1769"]
[Annotator "NA"]
[PlyCount "98"]
[EventDate "2020.08.07"]
[EventType "swiss"]
[EventCountry "SVK"]
[SourceTitle "playchess.com"]
[Source "ChessBase"]
[SourceQuality "1"]
[TimeControl "40/5400+30:1800+30"]

1. Nf3 g6 2. e4 Bg7 3. d4 d6 4. Nc3 Nf6 5. Be2 O-O 6. h3 Nbd7 7. O-O c5 8. Be3 cxd4 9. Bxd4 a6 10. Qd2 b5 11. a3 Bb7 12. e5 dxe5 13. Be3 e4 14. Nh2 Rc8 15. Bh6 Ne5 16. Qxd8 Rfxd8 17. Bxg7 Kxg7 18. Rad1 h5 19. Rfe1 Rxd1 20. Rxd1 Nc4 21. Bxc4 Rxc4 22. Nf1 e5 23. Ne3 Rd4 24. Kf1 Kf8 25. Ne2 Rd7 26. Ke1 Ke7 27. Nc3 Ke6 28. g3 Rd4 29. Ne2 Rxd1+ 30. Kxd1 Nd5 31. Nxd5 Bxd5 32. h4 f5 33. Kd2 Bc4 34. Nc3 Kd6 35. Ke3 Kc5 36. b4+ Kd6 37. Nd1 Ke6 38. Nc3 Kf6 39. a4 g5 40. hxg5+ Kxg5 41. axb5 axb5 42. Ne2 Kg4 43. Nc3 Bf1 44. Ne2 f4+ 45. gxf4 Bxe2 46. Kxe2 exf4 47. c4 Kf5 48. c5 h4 49. Kf1 h3 0-1

[Event "Int SVK-ch Open 2020"]
[Site "Drienica"]
[Date "2020.08.15"]
[Round "9.24"]
[White "Hudak, Vasil"]
[Black "Nandrazi, Dominik"]
[Result "1-0"]
[ECO "B15"]
[WhiteElo "1997"]
[BlackElo "1875"]
[Annotator "ChessBase"]
[PlyCount "97"]
[EventDate "2020.08.07"]
[EventType "swiss"]
[EventCountry "SVK"]
[SourceTitle "playchess.com"]
[Source "ChessBase"]
[SourceQuality "1"]
[TimeControl "40/5400+30:1800+30"]

1. e4 {[%emt 0:00:00]} c6 {[%emt 0:00:00]} 2. d4 {[%emt 0:00:00]} d5 {[%emt 0:00:00]} 3. Nc3 {[%emt 0:00:38]} h6 {[%emt 0:00:00]} 4. Nf3 {[%emt 0:02:10]} dxe4 {[%emt 0:00:00]} 5. Nxe4 {[%emt 0:00:19]} Bf5 {[%emt 0:00:00]} 6. Nc5 {[%emt 0:02:16]} Nd7 {[%emt 0:02:56]} 7. Nxd7 {[%emt 0:02:08]} Qxd7 {[%emt 0:00:15]} 8. Bc4 {[%emt 0:00:17]} e6 {[%emt 0:00:31]} 9. O-O {[%emt 0:00:24]} Bd6 {[%emt 0:00:21]} 10. Qe2 {[%emt 0:02:46]} Nf6 {[%emt 0:01:22]} 11. Rd1 {[%emt 0:05:31]} O-O {[%emt 0:01:29]} 12. Bb3 {[%emt 0:03:26]} Rad8 {[%emt 0:02:36]} 13. c3 {[%emt 0:03:46]} Qc7 {[%emt 0:01:43]} 14. h3 {[%emt 0:02:40]} Rfe8 {[%emt 0:04:13]} 15. Nh4 {[%emt 0:04:57]} Bh7 {[%emt 0:00:16]} 16. Qf3 {[%emt 0:02:18]} Qe7 {[%emt 0:03:22]} 17. g3 {[%emt 0:02:27]} Be4 {[%emt 0:01:56]} 18. Qe2 {[%emt 0:01:36]} Qc7 {[%emt 0:01:34]} 19. f4 {[%emt 0:02:48]} c5 {[%emt 0:01:44]} 20. Be3 {[%emt 0:01:47]} Nd5 {[%emt 0:01:12]} 21. Bf2 {[%emt 0:00:31]} f5 {[%emt 0:00:19]} 22. Ng6 {[%emt 0:00:57]} Kh7 {[%emt 0:03:22]} 23. Ne5 {[%emt 0:01:12]} Bxe5 {[%emt 0:02:49]} 24. dxe5 {[%emt 0:00:40]} a6 {[%emt 0:00:36]} 25. a4 {[%emt 0:00:34]} Qc6 {[%emt 0:00:49]} 26. a5 {[%emt 0:02:28]} Rg8 {[%emt 0:01:24]} 27. Ba4 {[%emt 0:01:02]} Qc7 {[%emt 0:01:24]} 28. Bc2 {[%emt 0:00:52]} Bxc2 {[%emt 0:00:17]} 29. Qxc2 {[%emt 0:00:09]} g5 {[%emt 0:00:22]} 30. fxg5 {[%emt 0:05:32]} Rxg5 {[%emt 0:00:09]} 31. Rd3 {[%emt 0:03:47]} c4 {[%emt 0:02:46]} 32. Rd4 {[%emt 0:03:03]} Qxe5 {[%emt 0:01:21]} 33. Re1 {[%emt 0:01:58]} Qf6 {[%emt 0:21:36]} 34. Kh2 {[%emt 0:06:05]} e5 {[%emt 0:13:02]} 35. Rxc4 {[%emt 0:02:07]} Qg7 {[%emt 0:01:47]} 36. g4 {[%emt 0:00:49]} Qg6 {[%emt 0:04:49]} 37. Bh4 {[%emt 0:01:30]} e4 {[%emt 0:08:30]} 38. Bxg5 {[%emt 0:03:45]} Qxg5 {[%emt 0:00:15]} 39. Qf2 {[%emt 0:01:19]} Rf8 {[%emt 0:01:16]} 40. h4 {[%emt 0:00:54]} Qe7 {[%emt 0:07:33]} 41. gxf5 {[%emt 0:32:55]} e3 {[%emt 0:30:32]} 42. Qg3 {[%emt 0:00:53]} Rg8 {[%emt 0:00:23]} 43. Rg4 {[%emt 0:00:17]} Rxg4 {[%emt 0:01:47]} 44. Qxg4 {[%emt 0:00:29]} Nf6 {[%emt 0:00:21]} 45. Qg6+ {[%emt 0:00:14]} Kh8 {[%emt 0:00:16]} 46. Qxh6+ {[%emt 0:00:46]} Nh7 {[%emt 0:00:05]} 47. Rxe3 {[%emt 0:00:11]} Qd7 {[%emt 0:00:34]} 48. Qe6 {[%emt 0:00:52]} Qd2+ {[%emt 0:01:36]} 49. Kh3 {[%emt 0:00:18]} 1-0

[Event "Int SVK-ch Open 2020"]
[Site "Drienica"]
[Date "2020.08.15"]
[Round "9.25"]
[White "Durica, Andrej"]
[Black "Sedlakova, Ivana"]
[Result "0-1"]
[ECO "B12"]
[WhiteElo "1911"]
[BlackElo "1983"]
[Annotator "ChessBase"]
[PlyCount "80"]
[EventDate "2020.08.07"]
[EventType "swiss"]
[EventCountry "SVK"]
[SourceTitle "playchess.com"]
[Source "ChessBase"]
[SourceQuality "1"]
[TimeControl "40/5400+30:1800+30"]

1. e4 {[%emt 0:04:32]} c6 {[%emt 0:00:00]} 2. d4 {[%emt 0:00:12]} d5 {[%emt 0:00:00]} 3. e5 {[%emt 0:00:12]} Bf5 {[%emt 0:00:00]} 4. Ne2 {[%emt 0:00:07]} e6 {[%emt 0:00:00]} 5. Ng3 {[%emt 0:00:06]} Bg6 {[%emt 0:00:29]} 6. h4 {[%emt 0:00:14]} h6 {[%emt 0:04:19]} 7. h5 {[%emt 0:01:11]} Bh7 {[%emt 0:00:02]} 8. Bd3 {[%emt 0:00:07]} Bxd3 {[%emt 0:00:02]} 9. cxd3 {[%emt 0:00:13]} Qb6 {[%emt 0:06:05]} 10. Be3 {[%emt 0:00:53]} Qxb2 {[%emt 0:07:33]} 11. Nd2 {[%emt 0:00:51]} Bb4 {[%emt 0:04:01]} 12. Rb1 {[%emt 0:01:40]} Bxd2+ {[%emt 0:00:16]} 13. Ke2 {[%emt 0:00:26]} Qxa2 {[%emt 0:00:44]} 14. Bxd2 {[%emt 0:01:06]} b6 {[%emt 0:01:54]} 15. Qc1 {[%emt 0:12:32]} Qa6 {[%emt 0:00:32]} 16. f4 {[%emt 0:02:15]} Ne7 {[%emt 0:02:48]} 17. Rf1 {[%emt 0:01:01]} Nd7 {[%emt 0:47:37]} 18. Bb4 {[%emt 0:05:09]} c5 {[%emt 0:00:35]} 19. dxc5 {[%emt 0:02:13]} bxc5 {[%emt 0:01:25]} 20. Bd2 {[%emt 0:01:57]} O-O {[%emt 0:02:41]} 21. Ra1 {[%emt 0:04:36]} Qc6 {[%emt 0:01:12]} 22. Kf2 {[%emt 0:03:27]} Rfc8 {[%emt 0:03:48]} 23. Qd1 {[%emt 0:02:22]} f5 {[%emt 0:03:14]} 24. Rc1 {[%emt 0:00:59]} Qb5 {[%emt 0:04:14]} 25. Qf3 {[%emt 0:00:34]} Nc6 {[%emt 0:01:03]} 26. Ne2 {[%emt 0:00:36]} Nb4 {[%emt 0:01:56]} 27. Bxb4 {[%emt 0:01:21]} cxb4 {[%emt 0:00:05]} 28. g4 {[%emt 0:01:59]} b3 {[%emt 0:01:34]} 29. gxf5 {[%emt 0:01:24]} b2 {[%emt 0:00:51]} 30. Rb1 {[%emt 0:00:52]} exf5 {[%emt 0:01:01]} 31. Rxb2 {[%emt 0:01:33]} Qxb2 {[%emt 0:01:35]} 32. Qxd5+ {[%emt 0:00:26]} Kh8 {[%emt 0:00:15]} 33. Qxd7 {[%emt 0:00:36]} Rc2 {[%emt 0:01:08]} 34. Re1 {[%emt 0:00:22]} Qb6+ {[%emt 0:00:24]} 35. Kf1 {[%emt 0:01:18]} Qe3 {[%emt 0:00:05]} 36. Qd5 {[%emt 0:00:48]} Rac8 {[%emt 0:00:21]} 37. Qd4 {[%emt 0:02:17]} Qh3+ {[%emt 0:00:47]} 38. Kg1 {[%emt 0:00:24]} Rxe2 {[%emt 0:01:08]} 39. Rxe2 {[%emt 0:00:37]} Rc1+ {[%emt 0:00:04]} 40. Kf2 {[%emt 0:00:09]} Rf1# {[%emt 0:00:05]} 0-1